fUSD/lending_fUSD_20260617
["ID","MTS","AMOUNT","RATE_DAILY","PERIOD"]
[425284300,1781641874000,-200.0,0.00034169,7]
[425284308,1781641874000,-277.5,0.00034212,120]
[425284307,1781641874000,-250.0,0.00034193,7]
[425284309,1781641874000,-829.21,0.00034221,5]
[425284310,1781641874000,-1734.78,0.00034223,2]
[425284254,1781641874000,-26367.56377158,0.00034,2]
[425284311,1781641874000,-175.33,0.00034223,120]
[425284297,1781641874000,-151.0,0.00034169,7]
[425284286,1781641874000,-151.0,0.00034169,7]
[425284298,1781641874000,-200.0,0.00034169,7]
[425284280,1781641874000,-151.0,0.00034169,7]
[425284257,1781641874000,-160.0,0.00034,120]
[425284294,1781641874000,-151.0,0.00034169,7]
[425284259,1781641874000,-313.864851,0.00034,120]
[425284263,1781641874000,-151.0,0.00034,7]
[425284264,1781641874000,-750.0,0.00034,2]
[425284261,1781641874000,-151.0,0.00034,7]
[425284268,1781641874000,-1292.0,0.00034004,30]
[425284266,1781641874000,-205.0,0.00034004,30]
[425284262,1781641874000,-151.0,0.00034,7]
[425284270,1781641874000,-271.0,0.00034004,30]
[425284269,1781641874000,-1937.0,0.00034004,30]
[425284272,1781641874000,-584.0,0.00034004,30]
[425284273,1781641874000,-340.0,0.00034004,30]
[425284267,1781641874000,-228.0,0.00034004,30]
[425284271,1781641874000,-258.0,0.00034004,30]
[425284281,1781641874000,-151.0,0.00034169,7]
[425284283,1781641874000,-151.0,0.00034169,7]
[425284282,1781641874000,-151.0,0.00034169,7]
[425284277,1781641874000,-277.137824,0.00034078,120]
[425284278,1781641874000,-603.0,0.00034079,9]
[425284284,1781641874000,-286.933453,0.00034169,7]
[425284275,1781641874000,-6078.0,0.00034016,2]
[425284276,1781641874000,-153.1566,0.0003407,2]
[425284274,1781641874000,-377.0,0.00034004,30]
[425284279,1781641874000,-500.0,0.0003414,27]
[425284343,1781641875000,-302.97495936,0.00034267,2]
[425284340,1781641875000,-536.0886118,0.00034267,2]
[425284345,1781641875000,-300.7600897,0.00034267,2]
[425284348,1781641875000,-300.0,0.00034267,2]
[425284347,1781641875000,-300.0,0.00034267,2]
[425284344,1781641875000,-300.0,0.00034267,2]
[425284346,1781641875000,-301.74779532,0.00034267,2]
[425284350,1781641875000,-300.0,0.00034267,2]
[425284358,1781641875000,-300.0,0.00034267,2]
[425284359,1781641875000,-300.0,0.00034267,2]
[425284349,1781641875000,-300.0,0.00034267,2]
[425284366,1781641875000,-300.0,0.00034267,2]
[425284352,1781641875000,-300.0,0.00034267,2]
[425284353,1781641875000,-300.0,0.00034267,2]
[425284354,1781641875000,-345.2942186,0.00034267,2]
[425284355,1781641875000,-300.0,0.00034267,2]
[425284357,1781641875000,-528.9427319,0.00034267,2]
[425284356,1781641875000,-300.0,0.00034267,2]
[425284361,1781641875000,-300.0,0.00034267,2]
[425284367,1781641875000,-1053.72634213,0.00034267,2]
[425284363,1781641875000,-1804.85423076,0.00034267,2]
[425284362,1781641875000,-953.01887079,0.00034267,2]
[425284364,1781641875000,-300.0,0.00034267,2]
[425284342,1781641875000,-300.0,0.00034267,2]
[425284351,1781641875000,-300.0,0.00034267,2]
[425284341,1781641875000,-729.15388008,0.00034267,2]
[425284312,1781641875000,-155.15,0.00034227,120]
[425284337,1781641875000,-300.0,0.00034267,2]
[425284365,1781641875000,-300.0,0.00034267,2]
[425284317,1781641875000,-1099.56265256,0.00034267,2]
[425284314,1781641875000,-161.62808237,0.00034247,30]
[425284315,1781641875000,-300.0,0.00034267,2]
[425284313,1781641875000,-150.5,0.00034237,120]
[425284316,1781641875000,-300.0,0.00034267,2]
[425284319,1781641875000,-300.0,0.00034267,2]
[425284326,1781641875000,-300.0,0.00034267,2]
[425284324,1781641875000,-300.0,0.00034267,2]
[425284323,1781641875000,-300.0,0.00034267,2]
[425284320,1781641875000,-300.0,0.00034267,2]
[425284322,1781641875000,-300.0,0.00034267,2]
[425284339,1781641875000,-300.0,0.00034267,2]
[425284318,1781641875000,-300.0,0.00034267,2]
[425284328,1781641875000,-300.0,0.00034267,2]
[425284327,1781641875000,-300.0,0.00034267,2]
[425284325,1781641875000,-300.0,0.00034267,2]
[425284330,1781641875000,-494.61116003,0.00034267,2]
[425284329,1781641875000,-300.0,0.00034267,2]
[425284331,1781641875000,-300.0,0.00034267,2]
[425284333,1781641875000,-300.0,0.00034267,2]
[425284334,1781641875000,-300.0,0.00034267,2]
[425284332,1781641875000,-300.0,0.00034267,2]
[425284335,1781641875000,-607.02265113,0.00034267,2]
[425284338,1781641875000,-300.0,0.00034267,2]
[425284336,1781641875000,-300.0,0.00034267,2]
[425284321,1781641875000,-300.0,0.00034267,2]
[425284368,1781641875000,-300.0,0.00034267,2]
[425284360,1781641875000,-868.04256557,0.00034267,2]
[425284372,1781641875000,-1346.28541318,0.00034267,2]
[425284401,1781641875000,-300.0,0.00034267,2]
[425284399,1781641875000,-300.0,0.00034267,2]
[425284404,1781641875000,-300.0,0.00034267,2]
[425284402,1781641875000,-300.0,0.00034267,2]
[425284408,1781641875000,-300.0,0.00034267,2]
[425284403,1781641875000,-300.0,0.00034267,2]
[425284409,1781641875000,-300.0,0.00034267,2]
[425284405,1781641875000,-300.0,0.00034267,2]
[425284406,1781641875000,-300.0,0.00034267,2]
[425284411,1781641875000,-494.61116003,0.00034267,2]
[425284410,1781641875000,-300.0,0.00034267,2]
[425284412,1781641875000,-300.0,0.00034267,2]
[425284415,1781641875000,-300.0,0.00034267,2]
[425284420,1781641875000,-300.0,0.00034267,2]
[425284413,1781641875000,-300.0,0.00034267,2]
[425284414,1781641875000,-300.0,0.00034267,2]
[425284418,1781641875000,-300.0,0.00034267,2]
[425284417,1781641875000,-607.02265113,0.00034267,2]
[425284416,1781641875000,-300.0,0.00034267,2]
[425284421,1781641875000,-300.0,0.00034267,2]
[425284422,1781641875000,-300.0,0.00034267,2]
[425284423,1781641875000,-536.0886118,0.00034267,2]
[425284424,1781641875000,-314.71594017,0.00034267,2]
[425284425,1781641875000,-729.15388008,0.00034267,2]
[425284369,1781641875000,-310.80968515,0.00034267,2]
[425284407,1781641875000,-300.0,0.00034267,2]
[425284400,1781641875000,-300.0,0.00034267,2]
[425284419,1781641875000,-300.0,0.00034267,2]
[425284393,1781641875000,-300.0,0.00034267,2]
[425284371,1781641875000,-300.0,0.00034267,2]
[425284395,1781641875000,-300.0,0.00034267,2]
[425284370,1781641875000,-300.0,0.00034267,2]
[425284373,1781641875000,-300.0,0.00034267,2]
[425284377,1781641875000,-300.0,0.00034267,2]
[425284381,1781641875000,-583.56884083,0.00034267,2]
[425284383,1781641875000,-453.6656999,0.00034267,2]
[425284379,1781641875000,-513.27224443,0.00034267,2]
[425284378,1781641875000,-300.0,0.00034267,2]
[425284380,1781641875000,-300.0,0.00034267,2]
[425284385,1781641875000,-300.0,0.00034267,2]
[425284384,1781641875000,-300.0,0.00034267,2]
[425284374,1781641875000,-300.0,0.00034267,2]
[425284376,1781641875000,-596.49358704,0.00034267,2]
[425284382,1781641875000,-300.0,0.00034267,2]
[425284397,1781641875000,-646.99410714,0.00034267,2]
[425284375,1781641875000,-300.0,0.00034267,2]
[425284398,1781641875000,-1099.56265256,0.00034267,2]
[425284390,1781641875000,-300.0,0.00034267,2]
[425284391,1781641875000,-300.0,0.00034267,2]
[425284389,1781641875000,-445.48672195,0.00034267,2]
[425284387,1781641875000,-300.0,0.00034267,2]
[425284392,1781641875000,-300.0,0.00034267,2]
[425284394,1781641875000,-300.0,0.00034267,2]
[425284396,1781641875000,-300.0,0.00034267,2]
[425284386,1781641875000,-300.0,0.00034267,2]
[425284388,1781641875000,-300.0,0.00034267,2]
[425284448,1781641876000,-300.0,0.00034267,2]
[425284446,1781641876000,-868.04256557,0.00034267,2]
[425284456,1781641876000,-300.0,0.00034267,2]
[425284450,1781641876000,-300.0,0.00034267,2]
[425284458,1781641876000,-300.0,0.00034267,2]
[425284449,1781641876000,-1804.85423076,0.00034267,2]
[425284452,1781641876000,-1541.73090488,0.00034267,2]
[425284459,1781641876000,-300.0,0.00034267,2]
[425284451,1781641876000,-300.0,0.00034267,2]
[425284454,1781641876000,-310.80968515,0.00034267,2]
[425284455,1781641876000,-300.0,0.00034267,2]
[425284460,1781641876000,-300.0,0.00034267,2]
[425284465,1781641876000,-300.0,0.00034267,2]
[425284447,1781641876000,-953.01887079,0.00034267,2]
[425284461,1781641876000,-596.49358704,0.00034267,2]
[425284453,1781641876000,-300.0,0.00034267,2]
[425284444,1781641876000,-300.0,0.00034267,2]
[425284426,1781641876000,-300.0,0.00034267,2]
[425284440,1781641876000,-345.2942186,0.00034267,2]
[425284468,1781641876000,-453.6656999,0.00034267,2]
[425284429,1781641876000,-303.27256053,0.00034267,2]
[425284433,1781641876000,-300.0,0.00034267,2]
[425284430,1781641876000,-300.7600897,0.00034267,2]
[425284431,1781641876000,-301.74779532,0.00034267,2]
[425284432,1781641876000,-300.0,0.00034267,2]
[425284427,1781641876000,-302.97495936,0.00034267,2]
[425284428,1781641876000,-300.0,0.00034267,2]
[425284436,1781641876000,-300.0,0.00034267,2]
[425284437,1781641876000,-300.0,0.00034267,2]
[425284445,1781641876000,-300.0,0.00034267,2]
[425284439,1781641876000,-300.0,0.00034267,2]
[425284435,1781641876000,-300.0,0.00034267,2]
[425284442,1781641876000,-300.0,0.00034267,2]
[425284438,1781641876000,-300.0,0.00034267,2]
[425284441,1781641876000,-528.9427319,0.00034267,2]
[425284434,1781641876000,-300.0,0.00034267,2]
[425284443,1781641876000,-300.0,0.00034267,2]
[425284462,1781641876000,-300.0,0.00034267,2]
[425284457,1781641876000,-1346.28541318,0.00034267,2]
[425284469,1781641876000,-300.0,0.00034267,2]
[425284489,1781641876000,-300.0,0.00034267,2]
[425284485,1781641876000,-300.0,0.00034267,2]
[425284487,1781641876000,-300.0,0.00034267,2]
[425284491,1781641876000,-300.0,0.00034267,2]
[425284490,1781641876000,-300.0,0.00034267,2]
[425284494,1781641876000,-494.61116003,0.00034267,2]
[425284493,1781641876000,-300.0,0.00034267,2]
[425284499,1781641876000,-268.15056314,0.00034267,2]
[425284498,1781641876000,-300.0,0.00034267,2]
[425284497,1781641876000,-300.0,0.00034267,2]
[425284496,1781641876000,-367.97076321,0.00034267,2]
[425284495,1781641876000,-495.31066734,0.00034267,2]
[425284500,1781641876000,-594.88,0.00024658,2]
[425284501,1781641876000,-594.88,0.00024946,7]
[425284503,1781641876000,-594.88,0.00025234,30]
[425284502,1781641876000,-545.0,0.00025,10]
[425284463,1781641876000,-300.0,0.00034267,2]
[425284488,1781641876000,-300.0,0.00034267,2]
[425284482,1781641876000,-1099.56265256,0.00034267,2]
[425284504,1781641876000,-594.88,0.00025523,2]
[425284484,1781641876000,-300.0,0.00034267,2]
[425284464,1781641876000,-513.27224443,0.00034267,2]
[425284466,1781641876000,-583.56884083,0.00034267,2]
[425284467,1781641876000,-300.0,0.00034267,2]
[425284471,1781641876000,-300.0,0.00034267,2]
[425284470,1781641876000,-300.0,0.00034267,2]
[425284481,1781641876000,-300.0,0.00034267,2]
[425284472,1781641876000,-300.0,0.00034267,2]
[425284478,1781641876000,-300.0,0.00034267,2]
[425284473,1781641876000,-300.0,0.00034267,2]
[425284479,1781641876000,-300.0,0.00034267,2]
[425284477,1781641876000,-300.0,0.00034267,2]
[425284476,1781641876000,-300.0,0.00034267,2]
[425284474,1781641876000,-300.0,0.00034267,2]
[425284480,1781641876000,-300.0,0.00034267,2]
[425284483,1781641876000,-300.0,0.00034267,2]
[425284492,1781641876000,-300.0,0.00034267,2]
[425284486,1781641876000,-300.0,0.00034267,2]
[425284475,1781641876000,-445.48672195,0.00034267,2]
[425284527,1781641877000,-729.15388008,0.00034267,2]
[425284526,1781641877000,-300.0,0.00034267,2]
[425284525,1781641877000,-536.0886118,0.00034267,2]
[425284528,1781641877000,-300.0,0.00034267,2]
[425284529,1781641877000,-302.97495936,0.00034267,2]
[425284530,1781641877000,-300.0,0.00034267,2]
[425284537,1781641877000,-300.0,0.00034267,2]
[425284532,1781641877000,-301.74779532,0.00034267,2]
[425284531,1781641877000,-300.7600897,0.00034267,2]
[425284534,1781641877000,-300.0,0.00034267,2]
[425284538,1781641877000,-300.0,0.00034267,2]
[425284535,1781641877000,-300.0,0.00034267,2]
[425284536,1781641877000,-300.0,0.00034267,2]
[425284533,1781641877000,-300.0,0.00034267,2]
[425284523,1781641877000,-300.0,0.00034267,2]
[425284542,1781641877000,-528.9427319,0.00034267,2]
[425284522,1781641877000,-300.0,0.00034267,2]
[425284519,1781641877000,-300.0,0.00034267,2]
[425284521,1781641877000,-300.0,0.00034267,2]
[425284540,1781641877000,-300.0,0.00034267,2]
[425284508,1781641877000,-71.40862376,0.00026676,7]
[425284505,1781641877000,-594.88,0.00025811,7]
[425284507,1781641877000,-594.88,0.00026388,2]
[425284506,1781641877000,-594.88,0.00026099,30]
[425284510,1781641877000,-594.88,0.00026964,30]
[425284509,1781641877000,-523.47137624,0.00026676,7]
[425284524,1781641877000,-300.0,0.00034267,2]
[425284511,1781641877000,-594.88,0.00027253,2]
[425284513,1781641877000,-207.387778,0.000299,7]
[425284514,1781641877000,-207.387778,0.0003013,7]
[425284517,1781641877000,-207.387788,0.00032877,7]
[425284516,1781641877000,-264.483146,0.00032877,7]
[425284515,1781641877000,-151.0,0.00032877,7]
[425284518,1781641877000,-31.84943686,0.00034267,2]
[425284520,1781641877000,-607.02265113,0.00034267,2]
[425284512,1781641877000,-207.387778,0.000289,7]
[425284539,1781641877000,-300.0,0.00034267,2]
[425284565,1781641877000,-300.0,0.00034267,2]
[425284544,1781641877000,-300.0,0.00034267,2]
[425284563,1781641877000,-300.0,0.00034267,2]
[425284566,1781641877000,-583.56884083,0.00034267,2]
[425284575,1781641877000,-445.48672195,0.00034267,2]
[425284541,1781641877000,-345.2942186,0.00034267,2]
[425284569,1781641877000,-300.0,0.00034267,2]
[425284572,1781641877000,-300.0,0.00034267,2]
[425284571,1781641877000,-300.0,0.00034267,2]
[425284576,1781641877000,-300.0,0.00034267,2]
[425284577,1781641877000,-300.0,0.00034267,2]
[425284568,1781641877000,-453.6656999,0.00034267,2]
[425284567,1781641877000,-300.0,0.00034267,2]
[425284570,1781641877000,-300.0,0.00034267,2]
[425284573,1781641877000,-300.0,0.00034267,2]
[425284579,1781641877000,-300.0,0.00034267,2]
[425284578,1781641877000,-300.0,0.00034267,2]
[425284564,1781641877000,-513.27224443,0.00034267,2]
[425284561,1781641877000,-596.49358704,0.00034267,2]
[425284574,1781641877000,-300.0,0.00034267,2]
[425284562,1781641877000,-300.0,0.00034267,2]
[425284543,1781641877000,-300.0,0.00034267,2]
[425284547,1781641877000,-868.04256557,0.00034267,2]
[425284558,1781641877000,-300.0,0.00034267,2]
[425284548,1781641877000,-953.01887079,0.00034267,2]
[425284549,1781641877000,-1804.85423076,0.00034267,2]
[425284551,1781641877000,-300.0,0.00034267,2]
[425284550,1781641877000,-300.0,0.00034267,2]
[425284546,1781641877000,-300.0,0.00034267,2]
[425284552,1781641877000,-300.0,0.00034267,2]
[425284553,1781641877000,-300.0,0.00034267,2]
[425284555,1781641877000,-300.0,0.00034267,2]
[425284554,1781641877000,-310.80968515,0.00034267,2]
[425284556,1781641877000,-300.0,0.00034267,2]
[425284557,1781641877000,-1346.28541318,0.00034267,2]
[425284559,1781641877000,-300.0,0.00034267,2]
[425284560,1781641877000,-300.0,0.00034267,2]
[425284545,1781641877000,-300.0,0.00034267,2]
[425284587,1781641878000,-300.0,0.00034267,2]
[425284584,1781641878000,-300.0,0.00034267,2]
[425284581,1781641878000,-300.0,0.00034267,2]
[425284580,1781641878000,-300.0,0.00034267,2]
[425284588,1781641878000,-300.0,0.00034267,2]
[425284590,1781641878000,-300.0,0.00034267,2]
[425284583,1781641878000,-1099.56265256,0.00034267,2]
[425284582,1781641878000,-300.0,0.00034267,2]
[425284589,1781641878000,-300.0,0.00034267,2]
[425284591,1781641878000,-300.0,0.00034267,2]
[425284586,1781641878000,-300.0,0.00034267,2]
[425284603,1781641878000,-300.0,0.00034267,2]
[425284585,1781641878000,-300.0,0.00034267,2]
[425284592,1781641878000,-300.0,0.00034267,2]
[425284593,1781641878000,-300.0,0.00034267,2]
[425284606,1781641878000,-292.01887753,0.00034267,2]
[425284604,1781641878000,-300.0,0.00034267,2]
[425284600,1781641878000,-138.42104673,0.00034267,2]
[425284595,1781641878000,-494.61116003,0.00034267,2]
[425284598,1781641878000,-300.0,0.00034267,2]
[425284605,1781641878000,-300.0,0.00034267,2]
[425284599,1781641878000,-300.0,0.00034267,2]
[425284597,1781641878000,-300.0,0.00034267,2]
[425284601,1781641878000,-468.6016044,0.00034267,2]
[425284594,1781641878000,-300.0,0.00034267,2]
[425284596,1781641878000,-300.0,0.00034267,2]
[425284602,1781641878000,-300.0,0.00034267,2]
[425284611,1781642031000,163.34,0.00014583,2]
[425284612,1781642275000,174.96,0.00014688,2]
[425284613,1781642297000,676.72,0.0001456,2]
[425284614,1781642331000,357.0,0.00014504,2]
[425284615,1781642333000,6751.62,0.00014504,2]
[425284616,1781642623000,150.0,0.00014302,2]
[425284617,1781642838000,200.0,0.00014353,2]
[425284618,1781642938000,371928.92,0.00013959,2]
[425284619,1781643030000,166.66,0.00014103,2]
[425284621,1781643030000,166.66,0.00014697,2]
[425284620,1781643030000,166.66,0.000144,2]
[425284625,1781643032000,-369.01895,0.00014718,2]
[425284624,1781643032000,-829.63571853,0.00014718,2]
[425284641,1781643033000,-152.0,0.00014796,2]
[425284655,1781643033000,-151.0,0.00014797,2]
[425284653,1781643033000,-152.0,0.00014797,2]
[425284654,1781643033000,-150.0,0.00014797,2]
[425284652,1781643033000,-152.0,0.00014797,2]
[425284650,1781643033000,-151.0,0.00014797,2]
[425284649,1781643033000,-150.0,0.00014797,2]
[425284648,1781643033000,-150.0,0.00014797,2]
[425284647,1781643033000,-150.0,0.00014797,2]
[425284646,1781643033000,-150.0,0.00014797,2]
[425284645,1781643033000,-151.0,0.00014796,2]
[425284644,1781643033000,-150.0,0.00014796,2]
[425284643,1781643033000,-150.0,0.00014796,2]
[425284642,1781643033000,-151.0,0.00014796,2]
[425284631,1781643033000,-152.0,0.00014796,2]
[425284639,1781643033000,-64.82393768,0.00014796,2]
[425284637,1781643033000,-152.0,0.00014796,2]
[425284638,1781643033000,-151.0,0.00014796,2]
[425284636,1781643033000,-152.0,0.00014796,2]
[425284635,1781643033000,-152.0,0.00014796,2]
[425284634,1781643033000,-151.0,0.00014796,2]
[425284633,1781643033000,-151.0,0.00014796,2]
[425284632,1781643033000,-151.0,0.00014796,2]
[425284656,1781643033000,-153.0,0.00014797,2]
[425284630,1781643033000,-150.0,0.00014796,2]
[425284628,1781643033000,-151.0,0.00014796,2]
[425284629,1781643033000,-151.0,0.00014796,2]
[425284626,1781643033000,-2250.37276814,0.00014718,2]
[425284627,1781643033000,-570.12306333,0.00014718,2]
[425284640,1781643033000,-85.17606232,0.00014796,2]
[425284658,1781643033000,-153.0,0.00014797,2]
[425284651,1781643033000,-151.0,0.00014797,2]
[425284660,1781643033000,-151.0,0.00014797,2]
[425284657,1781643033000,-153.0,0.00014797,2]
[425284688,1781643033000,-151.0,0.00014798,2]
[425284687,1781643033000,-319.0,0.00014798,2]
[425284685,1781643033000,-311.0,0.00014798,2]
[425284686,1781643033000,-309.0,0.00014798,2]
[425284683,1781643033000,-312.0,0.00014798,2]
[425284684,1781643033000,-318.0,0.00014798,2]
[425284682,1781643033000,-151.0,0.00014798,2]
[425284680,1781643033000,-310.0,0.00014798,2]
[425284681,1781643033000,-151.0,0.00014798,2]
[425284679,1781643033000,-313.0,0.00014797,2]
[425284675,1781643033000,-315.32573478,0.00014797,2]
[425284677,1781643033000,-220.87976229,0.00014797,2]
[425284678,1781643033000,-91.12023771,0.00014797,2]
[425284676,1781643033000,-295.66958995,0.00014797,2]
[425284689,1781643033000,-319.0,0.00014798,2]
[425284674,1781643033000,-152.0,0.00014797,2]
[425284673,1781643033000,-150.0,0.00014797,2]
[425284661,1781643033000,-150.0,0.00014797,2]
[425284662,1781643033000,-150.0,0.00014797,2]
[425284663,1781643033000,-152.0,0.00014797,2]
[425284665,1781643033000,-153.0,0.00014797,2]
[425284664,1781643033000,-150.0,0.00014797,2]
[425284659,1781643033000,-151.0,0.00014797,2]
[425284670,1781643033000,-152.0,0.00014797,2]
[425284669,1781643033000,-151.0,0.00014797,2]
[425284666,1781643033000,-151.0,0.00014797,2]
[425284668,1781643033000,-151.0,0.00014797,2]
[425284672,1781643033000,-151.0,0.00014797,2]
[425284671,1781643033000,-153.0,0.00014797,2]
[425284667,1781643033000,-150.0,0.00014797,2]
[425284707,1781643034000,-157.66072928,0.00014798,2]
[425284708,1781643034000,-151.33927072,0.00014798,2]
[425284709,1781643034000,-152.0,0.00014799,2]
[425284710,1781643034000,-152.0,0.00014799,2]
[425284711,1781643034000,-318.0,0.00014799,2]
[425284714,1781643034000,-319.0,0.00014799,2]
[425284712,1781643034000,-151.0,0.00014799,2]
[425284716,1781643034000,-309.0,0.00014799,2]
[425284715,1781643034000,-150.0,0.00014799,2]
[425284718,1781643034000,-317.0,0.00014799,2]
[425284706,1781643034000,-314.0,0.00014798,2]
[425284717,1781643034000,-321.0,0.00014799,2]
[425284713,1781643034000,-320.0,0.00014799,2]
[425284704,1781643034000,-320.0,0.00014798,2]
[425284694,1781643034000,-317.0,0.00014798,2]
[425284703,1781643034000,-39.16591115,0.00014798,2]
[425284702,1781643034000,-280.83408885,0.00014798,2]
[425284701,1781643034000,-315.0,0.00014798,2]
[425284700,1781643034000,-81.13185155,0.00014798,2]
[425284698,1781643034000,-274.94492123,0.00014798,2]
[425284699,1781643034000,-69.86814845,0.00014798,2]
[425284697,1781643034000,-45.05507877,0.00014798,2]
[425284696,1781643034000,-312.0,0.00014798,2]
[425284695,1781643034000,-151.0,0.00014798,2]
[425284693,1781643034000,-313.0,0.00014798,2]
[425284692,1781643034000,-311.0,0.00014798,2]
[425284690,1781643034000,-316.0,0.00014798,2]
[425284691,1781643034000,-151.0,0.00014798,2]
[425284720,1781643034000,-318.0,0.00014799,2]
[425284705,1781643034000,-150.0,0.00014798,2]
[425284719,1781643034000,-151.0,0.00014799,2]
[425284732,1781643034000,-126.36285254,0.00014799,2]
[425284721,1781643034000,-78.04072928,0.00014799,2]
[425284750,1781643034000,-165.856836,0.00017098,2]
[425284752,1781643034000,-165.856836,0.00017303,2]
[425284751,1781643034000,-165.856836,0.000172,2]
[425284748,1781643034000,-4474.24417822,0.00016437,2]
[425284749,1781643034000,-500.0,0.00016437,2]
[425284745,1781643034000,-166.66,0.00015588,2]
[425284747,1781643034000,-676.72,0.0001638,2]
[425284743,1781643034000,-151.0,0.00015095,2]
[425284744,1781643034000,-166.66,0.00015291,2]
[425284741,1781643034000,-150.0,0.00014873,2]
[425284742,1781643034000,-166.66,0.00014994,2]
[425284740,1781643034000,-150.0,0.00014873,2]
[425284738,1781643034000,-500.0,0.00014817,2]
[425284739,1781643034000,-151.0,0.00014817,2]
[425284746,1781643034000,-600.0,0.00016275,2]
[425284737,1781643034000,-160.0,0.00014815,2]
[425284736,1781643034000,-160.0,0.00014807,2]
[425284723,1781643034000,-151.0,0.00014799,2]
[425284725,1781643034000,-317.0,0.00014799,2]
[425284724,1781643034000,-317.0,0.00014799,2]
[425284726,1781643034000,-309.0,0.00014799,2]
[425284727,1781643034000,-151.0,0.00014799,2]
[425284728,1781643034000,-309.0,0.00014799,2]
[425284722,1781643034000,-235.95927072,0.00014799,2]
[425284730,1781643034000,-150.0,0.00014799,2]
[425284731,1781643034000,-153.0,0.00014799,2]
[425284753,1781643034000,-1921.1399838,0.000174,2]
[425284733,1781643034000,-184.63714746,0.00014799,2]
[425284735,1781643034000,-310.0,0.00014799,2]
[425284734,1781643034000,-320.0,0.00014799,2]
[425284729,1781643034000,-320.0,0.00014799,2]
[425284758,1781643038000,-460.66925513,0.00016438,2]
[425284757,1781643038000,-160.0,0.00014816,2]
[425284756,1781643038000,-233.84607109,0.00014795,2]
[425284832,1781643040000,-39.33074487,0.00016438,2]
[425284833,1781643040000,-500.0,0.00016438,2]
[425284834,1781643040000,-194.56028351,0.00016438,2]
[425284831,1781643040000,-216.13448155,0.00014822,2]
[425284835,1781643041000,-305.43971649,0.00016438,2]
[425284836,1781643041000,-500.0,0.00016438,2]
[425284839,1781643041000,-500.0,0.00016438,2]
[425284838,1781643041000,-500.0,0.00016438,2]
[425284837,1781643041000,-500.0,0.00016438,2]
[425284840,1781643041000,-500.0,0.00016438,2]
[425284842,1781643041000,-500.0,0.00016438,2]
[425284841,1781643041000,-500.0,0.00016438,2]
[425284844,1781643041000,-500.0,0.00016438,2]
[425284845,1781643041000,-500.0,0.00016438,2]
[425284847,1781643041000,-500.0,0.00016438,2]
[425284846,1781643041000,-500.0,0.00016438,2]
[425284848,1781643041000,-500.0,0.00016438,2]
[425284849,1781643041000,-500.0,0.00016438,2]
[425284850,1781643041000,-500.0,0.00016438,2]
[425284851,1781643041000,-500.0,0.00016438,2]
[425284852,1781643041000,-500.0,0.00016438,2]
[425284843,1781643041000,-500.0,0.00016438,2]
[425284875,1781643042000,-4024.10110452,0.000174,2]
[425284874,1781643042000,-500.0,0.00016438,2]
[425284876,1781643042000,-10123.76565394,0.000174,2]